bitfinex/quotes_BTCUSD_20251224
["timestamp","ask_amount","ask_price","bid_price","bid_amount"]
[1766574516813,0.11628692,87300.0,87295.0,0.04582036]
[1766574517037,4.3e-06,87301.0,87293.0,0.01145541]
[1766574517234,4.3e-06,87301.0,87293.0,0.06873371]
[1766574517463,4.3e-06,87301.0,87294.0,0.04577564]
[1766574517659,4.3e-06,87301.0,87294.0,0.0572777]
[1766574517880,4.3e-06,87301.0,87293.0,0.24056734]
[1766574518226,0.1167043,87301.0,87293.0,0.22908682]
[1766574518427,0.1167043,87301.0,87296.0,0.0457963]
[1766574518632,4.3e-06,87301.0,87296.0,0.05725157]
[1766574518857,0.1167,87299.0,87291.0,0.01145593]
[1766574519061,0.1167,87299.0,87294.0,0.06873291]
[1766574519473,0.1167,87299.0,87294.0,0.06873321]
[1766574519850,0.1167,87299.0,87295.0,0.0114554]
[1766574520250,0.1167,87299.0,87293.0,0.068734]
[1766574520517,0.1167,87299.0,87294.0,0.05727723]
[1766574521074,0.1167,87299.0,87295.0,0.0114554]
[1766574521313,0.1167,87299.0,87293.0,0.01145567]
[1766574521479,0.10179401,87299.0,87295.0,0.0114554]
[1766574522266,0.10179401,87299.0,87294.0,0.06873276]
[1766574522510,0.10179401,87299.0,87295.0,0.0114554]
[1766574522713,0.01148,87306.0,87295.0,0.06873186]
[1766574522931,0.01145501,87298.0,87296.0,0.01145527]
[1766574523145,0.01139501,87298.0,87296.0,0.01145527]
[1766574523292,0.01139501,87298.0,87296.0,0.06873157]
[1766574523818,0.1167,87305.0,87296.0,0.01145527]
[1766574524120,0.1167,87305.0,87302.0,0.01145449]
[1766574524500,0.000549,87302.0,87300.0,0.05727371]
[1766574524838,0.1169512,87305.0,87299.0,0.06872867]
[1766574525038,0.00055,87299.0,87298.0,0.08020985]
[1766574525219,0.00055,87299.0,87298.0,0.01148]
[1766574525386,0.1169512,87305.0,87299.0,0.01145488]
[1766574526078,0.10577262,87305.0,87300.0,0.01145475]
[1766574526517,0.10577262,87305.0,87299.0,0.01145488]
[1766574526725,0.000549,87299.0,87298.0,0.02293501]
[1766574526939,0.10577262,87305.0,87298.0,0.02293501]
[1766574527160,0.10577262,87305.0,87299.0,0.01145488]
[1766574527318,0.10577262,87305.0,87300.0,0.01069329]
[1766574527518,0.10577262,87305.0,87301.0,0.01069329]
[1766574527725,0.10577262,87305.0,87302.0,0.01069329]
[1766574527925,0.09196683,87305.0,87299.0,0.01145488]
[1766574528133,0.08610931,87305.0,87299.0,0.06872914]
[1766574528358,0.08610931,87305.0,87298.0,0.08021009]
[1766574528563,0.08610931,87305.0,87298.0,0.02293501]
[1766574528762,0.08610931,87305.0,87298.0,0.08020979]
[1766574529003,0.08610931,87305.0,87298.0,0.02293501]
[1766574529926,0.08610931,87305.0,87298.0,0.01148]
[1766574530136,0.1167,87301.0,87290.0,0.01145606]
[1766574530331,0.1167,87301.0,87294.0,0.01148]
[1766574531917,0.10924725,87301.0,87294.0,0.01148]
[1766574533447,0.10924725,87301.0,87293.0,0.01148]
[1766574533647,0.10924725,87301.0,87292.0,0.01148]
[1766574533865,0.09434172,87301.0,87292.0,0.0229358]
[1766574534101,0.09434172,87301.0,87292.0,0.08021444]
[1766574534240,0.09434172,87301.0,87293.0,0.05727835]
[1766574534598,0.09434172,87301.0,87293.0,0.01145567]
[1766574534931,0.09434172,87301.0,87295.0,0.0114554]
[1766574535129,0.09434172,87301.0,87294.0,0.06873276]
[1766574535333,0.09434172,87301.0,87295.0,0.0114554]
[1766574535572,0.09434172,87301.0,87297.0,0.05727564]
[1766574535779,0.09379272,87301.0,87297.0,0.01145514]
[1766574536144,0.08261358,87301.0,87297.0,0.01145514]
[1766574536353,0.08261358,87301.0,87296.0,0.06873107]
[1766574536549,0.08261358,87301.0,87293.0,0.05727812]
[1766574536794,0.08261358,87301.0,87294.0,0.01145554]
[1766574536998,0.08261358,87301.0,87292.0,0.01148]
[1766574537173,0.1167,87298.0,87292.0,0.01148]
[1766574537960,0.1167,87298.0,87292.0,0.0229358]
[1766574538370,0.1167,87298.0,87292.0,0.01148]
[1766574538787,0.1167,87298.0,87292.0,0.08021478]
[1766574538990,0.1167,87298.0,87292.0,0.01148]
[1766574539783,0.1167,87298.0,87293.0,0.01069245]
[1766574539984,0.10179448,87298.0,87294.0,0.01069245]
[1766574540211,0.10179448,87298.0,87292.0,0.01148]
[1766574540212,0.10179448,87298.0,87295.0,0.01069245]
[1766574540570,0.10179448,87298.0,87296.0,0.01069245]
[1766574540724,0.10179448,87298.0,87297.0,0.01069245]
[1766574540927,0.10124548,87298.0,87297.0,0.01069245]
[1766574541735,0.05727901,87292.0,87291.0,6.3e-07]
[1766574541918,0.11377,87281.0,87269.0,0.01148]
[1766574542107,0.11377,87281.0,87269.0,0.01181495]
[1766574542326,0.11377,87275.0,87266.0,0.01145921]
[1766574542526,0.11377,87273.0,87266.0,0.01145921]
[1766574542732,0.11377,87273.0,87267.0,0.01145908]
[1766574542907,0.113221,87273.0,87268.0,0.01145895]
[1766574543108,0.113221,87273.0,87269.0,0.01145882]
[1766574543334,0.113221,87273.0,87270.0,0.01145869]
[1766574543692,0.10290505,87273.0,87270.0,0.01145869]
[1766574543947,0.10934232,87280.0,87273.0,0.01145829]
[1766574544160,0.11377,87289.0,87278.0,0.01145764]
[1766574544422,0.01148,87288.0,87279.0,0.06874495]
[1766574544670,0.01148,87288.0,87279.0,0.0114575]
[1766574544921,0.12525,87288.0,87278.0,0.06874584]
[1766574545080,0.12560613,87288.0,87277.0,0.14911586]
[1766574545263,0.13706245,87288.0,87277.0,0.13765809]
[1766574545455,0.12522659,87286.0,87273.0,0.06874976]
[1766574545660,0.12522659,87286.0,87274.0,0.01145816]
[1766574545835,0.11377,87286.0,87275.0,0.01145803]
[1766574546327,0.10258889,87286.0,87276.0,0.0114579]
[1766574546755,0.10258889,87286.0,87278.0,0.01145764]
[1766574546993,0.09513483,87286.0,87279.0,0.0114575]
[1766574547379,0.09513483,87286.0,87280.0,0.01145737]
[1766574547578,0.08022714,87286.0,87280.0,0.01145737]
[1766574547777,0.08022714,87286.0,87281.0,0.01145724]
[1766574548090,0.08022714,87286.0,87280.0,0.01145737]
[1766574548571,0.08022714,87286.0,87280.0,0.24060432]
[1766574548773,0.00035613,87288.0,87285.0,0.01145672]
[1766574548973,0.01145488,87299.0,87284.0,0.05728426]
[1766574549188,0.02293501,87298.0,87282.0,0.01145711]
[1766574549372,0.12522514,87297.0,87285.0,0.01145672]
[1766574549822,0.12522527,87296.0,87284.0,0.01145685]
[1766574550187,0.11377,87296.0,87285.0,0.01145672]
[1766574550383,0.11377,87296.0,87288.0,0.01145632]
[1766574550777,0.11377,87296.0,87287.0,0.06873869]
[1766574551459,0.11377,87296.0,87286.0,0.01145659]
[1766574551460,0.11377,87296.0,87286.0,0.06873899]
[1766574551593,0.11377,87296.0,87284.0,0.06874107]
[1766574551795,0.11377,87296.0,87285.0,0.01145672]
[1766574552237,0.12522527,87296.0,87283.0,0.06874129]
[1766574552450,0.11377,87296.0,87286.0,0.01145659]
[1766574552620,0.11377,87296.0,87285.0,0.06873999]
[1766574552846,0.12522527,87296.0,87285.0,0.01145672]
[1766574553019,0.11377,87296.0,87285.0,0.01145672]
[1766574553491,0.11377,87296.0,87286.0,0.01145659]
[1766574554164,0.11377,87296.0,87285.0,0.03314822]
[1766574554396,0.1138768,87299.0,87286.0,1e-08]
[1766574554613,0.01148,87295.0,87284.0,0.22913677]
[1766574554790,0.01148,87298.0,87284.0,0.22913677]
[1766574555029,0.01148,87298.0,87292.0,0.0114558]
[1766574555237,0.01148,87300.0,87289.0,0.01145619]
[1766574555365,0.01148,87300.0,87291.0,0.0572795]
[1766574555564,0.00110384,87308.0,87290.0,0.01145606]
[1766574555565,0.11402758,87308.0,87296.0,0.05727583]
[1766574555773,0.01148,87307.0,87296.0,0.01145527]
[1766574556244,0.01148,87307.0,87298.0,0.01145501]
[1766574556546,0.01148,87306.0,87298.0,0.06872965]
[1766574556666,0.00030138,87306.0,87299.0,0.05]
[1766574556870,0.11402758,87308.0,87299.0,0.05]
[1766574556871,0.12550758,87308.0,87299.0,0.05]
[1766574557479,0.12550758,87308.0,87299.0,0.06145488]
[1766574558840,0.12550758,87308.0,87299.0,0.05]
[1766574559227,0.12550758,87308.0,87299.0,0.06145488]
[1766574559426,0.11402758,87308.0,87299.0,0.06145488]
[1766574559646,0.12550758,87308.0,87300.0,0.01145475]
[1766574559830,0.12550758,87308.0,87299.0,0.11872925]
[1766574560024,0.12550758,87308.0,87300.0,0.01145475]
[1766574560614,0.11402758,87308.0,87301.0,0.01145462]
[1766574560824,0.11402758,87308.0,87299.0,0.05]
[1766574561990,0.1065752,87308.0,87299.0,0.05]
[1766574562296,0.1065752,87308.0,87299.0,0.10727427]
[1766574562722,0.1065752,87308.0,87299.0,0.11875427]
[1766574562894,0.1065752,87308.0,87299.0,0.13020915]
[1766574563098,0.1065752,87308.0,87300.0,0.01145475]
[1766574563320,0.00370347,87310.0,87300.0,0.01145475]
[1766574563445,0.00370347,87310.0,87299.0,0.13020915]
[1766574563446,0.01518347,87310.0,87299.0,0.07293488]
[1766574564001,0.01518347,87310.0,87299.0,0.06148]
[1766574564297,0.12895347,87310.0,87299.0,0.06148]
[1766574564475,0.05726786,87309.0,87299.0,0.06148]
[1766574564692,0.1252237,87308.0,87299.0,0.06148]
[1766574565074,0.02293357,87309.0,87299.0,0.06148]
[1766574565251,0.01148,87309.0,87299.0,0.06148]
[1766574565474,0.01148,87309.0,87299.0,0.07293488]
[1766574565695,0.01148,87309.0,87300.0,0.01067644]
[1766574565936,0.01148,87309.0,87297.0,0.01148]
[1766574566173,0.05726852,87308.0,87296.0,0.01148]
[1766574566400,0.0114537,87308.0,87295.0,0.05731006]
[1766574566641,0.0114537,87308.0,87292.0,0.01145554]
[1766574566876,0.0114537,87308.0,87295.0,0.01148]
[1766574567513,0.01145501,87296.0,87295.0,0.01148]
[1766574567718,0.12525,87309.0,87295.0,0.01148]
[1766574567719,0.12525,87309.0,87295.0,0.04070842]
[1766574568139,0.0114537,87308.0,87296.0,0.01145527]
[1766574568360,0.19397145,87309.0,87296.0,0.01145527]
[1766574568585,0.12525,87309.0,87295.0,0.0229354]
[1766574568798,0.13670357,87309.0,87295.0,0.08021234]
[1766574569452,0.13670357,87309.0,87296.0,0.01145527]
[1766574569666,0.12525,87309.0,87296.0,0.05723444]
[1766574570081,0.12525,87309.0,87295.0,0.08021234]
[1766574570345,0.11377,87309.0,87296.0,0.01141376]
[1766574570574,0.01148,87308.0,87296.0,0.01141376]
[1766574571173,0.01148,87308.0,87297.0,0.02286983]
[1766574571369,0.01148,87308.0,87297.0,0.01145514]
[1766574572099,0.0229337,87308.0,87295.0,0.0229354]
[1766574572314,0.0229337,87308.0,87295.0,0.01148]
[1766574572522,0.12541383,87307.0,87295.0,0.01148]
[1766574572728,0.11396,87305.0,87295.0,1e-08]
[1766574572908,0.11396,87305.0,87293.0,0.01148]
[1766574573140,0.11396,87305.0,87293.0,0.06875806]
[1766574573347,0.11396,87305.0,87293.0,0.01145567]
[1766574573559,0.11396,87303.0,87291.0,0.01148]
[1766574573764,0.00055,87293.0,87291.0,0.01148]
[1766574573970,0.12544,87303.0,87291.0,0.01148]
[1766574574190,0.12544,87303.0,87291.0,0.02293593]
[1766574574566,0.12544,87303.0,87291.0,0.01148]
[1766574575262,0.12544,87303.0,87289.0,0.06873714]
[1766574575427,0.12544,87303.0,87290.0,0.05728022]
[1766574575825,0.12131,87302.0,87287.0,0.01148]
[1766574576013,0.12131,87300.0,87287.0,0.02293645]
[1766574576214,0.12131,87300.0,87287.0,0.01148]
[1766574576413,0.12131,87317.0,87300.0,0.000549]
[1766574576619,0.01518347,87310.0,87300.0,0.000549]
[1766574576849,0.00773127,87310.0,87299.0,0.01145488]
[1766574577259,0.00773127,87310.0,87300.0,0.01145475]
[1766574577624,0.00773127,87310.0,87301.0,0.01145462]
[1766574577846,0.01148,87309.0,87302.0,0.01145449]
[1766574578100,0.01148,87309.0,87301.0,0.05727307]
[1766574578313,0.01148,87309.0,87300.0,0.06872794]
[1766574578505,0.010931,87309.0,87300.0,0.01145475]
[1766574578724,0.010931,87309.0,87303.0,1e-08]
[1766574578934,0.010931,87309.0,87300.0,0.01145475]
[1766574579150,0.010931,87309.0,87303.0,2e-08]
[1766574579365,2.98e-06,87312.0,87302.0,0.05727199]
[1766574579576,2.98e-06,87312.0,87303.0,0.01145436]
[1766574579785,2.98e-06,87312.0,87304.0,0.01145422]
[1766574580018,2.98e-06,87312.0,87307.0,0.01145383]
[1766574580243,2.98e-06,87312.0,87305.0,0.06872457]
[1766574580477,2.98e-06,87312.0,87306.0,0.01145396]
[1766574580681,2.98e-06,87312.0,87308.0,0.0114537]
[1766574581310,2.98e-06,87312.0,87308.0,1e-08]
[1766574581959,2.98e-06,87312.0,87308.0,1.4e-07]
[1766574582708,2.98e-06,87312.0,87306.0,0.01145396]
[1766574582912,2.98e-06,87312.0,87304.0,0.0572705]
[1766574583141,2.98e-06,87312.0,87305.0,0.01145409]
[1766574583315,2.98e-06,87312.0,87306.0,0.01145396]
[1766574583530,2.98e-06,87312.0,87305.0,0.06872454]
[1766574583732,2.98e-06,87312.0,87306.0,0.01145396]
[1766574584751,2.98e-06,87312.0,87307.0,0.01145383]
[1766574584954,0.00397633,87319.0,87307.0,1e-08]
[1766574585470,0.12528633,87319.0,87307.0,1e-08]
[1766574585616,0.00025115,87313.0,87307.0,0.01145384]
[1766574585967,0.00025115,87313.0,87307.0,1e-08]
[1766574586532,0.00025115,87313.0,87307.0,0.01145384]
[1766574587850,0.00397633,87319.0,87313.0,0.000251]
[1766574588059,0.01843945,87322.0,87313.0,1e-08]
[1766574588226,0.01843945,87322.0,87308.0,0.0114537]
[1766574588524,0.01843945,87322.0,87307.0,1e-08]
[1766574588704,0.12131,87319.0,87307.0,1e-08]
[1766574588905,0.12131,87317.0,87307.0,1e-08]
[1766574589106,0.12131,87316.0,87307.0,1e-08]
[1766574589998,0.12131,87316.0,87305.0,0.01148]
[1766574591900,0.11385824,87316.0,87305.0,0.01148]
[1766574594181,1.13e-06,87321.0,87316.0,0.000299]
[1766574594380,0.00695945,87322.0,87316.0,0.000299]
[1766574594381,5.8e-07,87322.0,87317.0,0.01148]
[1766574594829,5.8e-07,87322.0,87317.0,0.01123]
[1766574595386,0.01148,87321.0,87308.0,0.01148]
[1766574597640,0.00030332,87321.0,87308.0,0.01148]
[1766574598909,0.00030332,87321.0,87308.0,0.0229337]
[1766574599155,0.17105131,87319.0,87308.0,0.01148]
[1766574599374,0.00408509,87344.0,87319.0,0.000246]
[1766574599564,0.12946191,87344.0,87326.0,0.05725606]
[1766574599741,0.11379,87342.0,87322.0,0.05725933]
[1766574599921,0.11379,87342.0,87321.0,0.01145199]
[1766574599922,0.11379,87340.0,87327.0,0.05725601]
[1766574600129,0.15963,87339.0,87330.0,1e-08]
[1766574600336,0.01148,87338.0,87325.0,0.05725731]
[1766574600633,0.01148,87338.0,87325.0,0.04572012]
[1766574600892,0.01148,87338.0,87326.0,0.01145134]
[1766574601052,0.01148,87338.0,87320.0,0.01145213]
[1766574601381,0.11379,87337.0,87327.0,0.01145121]
[1766574601555,0.12527,87337.0,87327.0,0.01145121]
[1766574601736,0.12527,87337.0,87336.0,0.04361619]
[1766574601943,0.12527,87337.0,87336.0,0.00570819]
[1766574602255,0.11379,87337.0,87326.0,0.13765809]
[1766574602464,0.01148,87336.0,87326.0,0.13765809]
[1766574604488,0.01148,87336.0,87315.0,0.05726335]
[1766574604489,0.01145068,87331.0,87315.0,0.05726335]
[1766574604694,0.01148,87330.0,87315.0,0.01145278]
[1766574604901,0.02293081,87330.0,87315.0,0.01145278]
[1766574605097,0.0002511,87329.0,87315.0,0.01145278]
[1766574605782,0.0002511,87329.0,87316.0,0.01145265]
[1766574606009,0.0002511,87329.0,87315.0,0.01145278]
[1766574606244,0.0002511,87329.0,87314.0,0.06871688]
[1766574606447,0.0002511,87329.0,87315.0,0.01145278]
[1766574606669,0.0002511,87329.0,87316.0,0.01145265]
[1766574606882,0.01148,87330.0,87315.0,0.01145278]
[1766574606883,0.00428075,87330.0,87315.0,0.01145278]
[1766574607092,0.00428075,87330.0,87317.0,0.01145252]
[1766574607287,0.00428075,87330.0,87316.0,0.06871536]
[1766574607521,0.00428075,87330.0,87317.0,0.01145252]
[1766574607699,0.00428075,87330.0,87315.0,0.01145278]
[1766574607700,0.01573156,87330.0,87315.0,0.01145278]
[1766574608056,0.00428075,87330.0,87316.0,0.01145265]
[1766574608260,0.00428075,87330.0,87315.0,0.0687166]
[1766574608455,0.01573156,87330.0,87314.0,0.01145291]
[1766574608667,0.01573156,87330.0,87315.0,0.01145278]
[1766574608887,0.01145094,87329.0,87314.0,0.01145291]
[1766574609063,0.01573156,87330.0,87315.0,0.01145278]
[1766574609798,0.01145094,87329.0,87314.0,0.06871709]
[1766574610003,0.01573156,87330.0,87315.0,0.01145278]
[1766574611420,0.01145108,87328.0,87313.0,0.01145304]
[1766574611842,0.01145134,87326.0,87310.0,0.13765809]
[1766574612058,0.11379,87323.0,87311.0,0.13765809]
[1766574612286,0.01148,87322.0,87311.0,0.13765809]
[1766574612457,0.01148,87321.0,87311.0,0.1491114]
[1766574612867,0.01148,87321.0,87311.0,0.13765809]
[1766574614233,0.01148,87321.0,87312.0,0.01065273]
[1766574614400,0.01148,87321.0,87313.0,0.01065273]
[1766574614614,0.01148,87321.0,87314.0,0.01065273]
[1766574614808,0.01148,87321.0,87315.0,0.01065273]
[1766574615008,0.01148,87321.0,87311.0,0.12700512]
[1766574616625,0.01148,87321.0,87311.0,0.01239166]
[1766574616842,0.01145068,87331.0,87321.0,0.001099]
[1766574617045,0.06870708,87328.0,87321.0,0.001099]
[1766574617244,0.12524147,87325.0,87311.0,0.00093456]
[1766574617502,0.12524173,87323.0,87311.0,0.00093456]
[1766574617711,0.01148,87322.0,87311.0,0.00093456]
[1766574618015,0.11379,87320.0,87311.0,0.00093456]
[1766574618406,0.11379,87320.0,87305.0,0.24053342]
[1766574618630,0.11379,87320.0,87311.0,0.01145331]
[1766574619041,0.11379,87320.0,87311.0,0.06871985]
[1766574619400,0.09888867,87320.0,87311.0,0.01145331]
[1766574620323,0.09888867,87320.0,87312.0,0.01145317]
[1766574620529,0.09833967,87320.0,87314.0,0.01145291]
[1766574620724,0.09833967,87320.0,87312.0,0.06871849]
[1766574621098,0.09833967,87320.0,87313.0,0.01145304]
[1766574621284,0.09833967,87320.0,87311.0,0.01145331]
[1766574621726,0.09833967,87320.0,87310.0,0.01145344]
[1766574621933,0.07971311,87320.0,87307.0,0.01145383]
[1766574622170,0.07971311,87320.0,87307.0,0.06872297]
[1766574622421,0.07971311,87320.0,87308.0,0.0114537]
[1766574622635,0.0458,87327.0,87312.0,0.01145317]
[1766574622840,0.01148,87326.0,87315.0,1e-08]
[1766574623025,0.05726386,87314.0,87312.0,0.06871768]
[1766574623192,0.04956763,87314.0,87313.0,0.05726524]
[1766574623643,0.03808763,87314.0,87313.0,0.05726524]
[1766574623844,0.04956763,87314.0,87313.0,0.05726524]
[1766574624071,0.04956763,87314.0,87311.0,0.01145331]
[1766574624274,0.04956763,87314.0,87313.0,0.05726524]
[1766574624481,0.04956763,87314.0,87312.0,0.05726533]
[1766574624904,0.04956763,87314.0,87313.0,0.05726524]
[1766574625353,0.04956763,87314.0,87312.0,0.05726533]
[1766574625561,0.03294606,87314.0,87313.0,0.05726524]
[1766574625785,0.03294606,87314.0,87312.0,0.05726533]
[1766574625939,0.03294606,87314.0,87313.0,0.05726524]
[1766574626968,0.03294606,87314.0,87313.0,0.06793344]
[1766574627166,0.03294606,87314.0,87313.0,0.0106682]
[1766574627370,0.03294606,87314.0,87311.0,0.03299045]
[1766574628230,0.01148,87314.0,87309.0,0.01145357]
[1766574628647,0.01148,87314.0,87298.0,0.01145501]
[1766574628648,0.001099,87309.0,87298.0,0.01145501]
[1766574628853,0.01148,87308.0,87299.0,0.01145488]
[1766574629052,0.01148,87308.0,87300.0,0.0572737]
[1766574629256,0.01148,87308.0,87300.0,1e-08]
[1766574629661,0.01148,87308.0,87300.0,0.05727377]
[1766574629942,0.01148,87308.0,87298.0,0.01145488]
[1766574630164,0.12607,87307.0,87298.0,0.01145488]
[1766574630392,0.12607,87307.0,87298.0,0.06872939]
[1766574630624,0.12607,87307.0,87299.0,0.0687292]
[1766574631207,0.01148,87308.0,87302.0,1e-08]
[1766574631402,0.01148,87308.0,87301.0,0.01145462]
[1766574631603,0.01148,87308.0,87301.0,1e-08]
[1766574631983,0.00030279,87308.0,87301.0,1e-08]
[1766574633433,0.12607,87314.0,87301.0,1e-08]
[1766574633660,0.12607,87312.0,87301.0,1e-08]
[1766574634197,0.01148,87311.0,87301.0,1e-08]
[1766574634608,0.01148,87311.0,87296.0,0.05727639]
[1766574634815,0.00010786,87300.0,87299.0,0.22909738]
[1766574635026,0.01148,87303.0,87300.0,0.06872829]
[1766574635224,0.01148,87303.0,87300.0,0.01156155]
[1766574635424,0.12607,87312.0,87302.0,1e-08]
[1766574635789,0.01148,87311.0,87302.0,1e-08]
[1766574637116,0.06871462,87318.0,87302.0,1e-08]
[1766574637117,0.14418,87322.0,87305.0,0.06872447]
[1766574637339,0.22437202,87321.0,87303.0,0.0687256]
[1766574637774,0.14418,87320.0,87303.0,0.0687256]
[1766574638000,0.14418,87320.0,87304.0,0.01145422]
[1766574638191,0.14418,87320.0,87302.0,1e-08]
[1766574638331,0.15563239,87318.0,87302.0,1e-08]
[1766574638687,0.15563278,87315.0,87302.0,1e-08]
[1766574638902,0.14418,87314.0,87302.0,1e-08]
[1766574639129,0.15566,87314.0,87302.0,1e-08]
[1766574639331,0.15566,87314.0,87303.0,0.01066767]
[1766574639538,0.15566,87314.0,87304.0,0.01066767]
[1766574639714,0.15566,87314.0,87305.0,0.01066767]
[1766574639915,0.01148,87313.0,87302.0,1e-08]
[1766574641544,0.01148,87312.0,87302.0,1e-08]
[1766574641753,0.01148,87311.0,87302.0,1e-08]
[1766574641959,0.0003028,87311.0,87302.0,1e-08]
[1766574642170,0.14418,87310.0,87302.0,1e-08]
[1766574645349,0.01148,87309.0,87302.0,1e-08]
[1766574648176,0.15566,87309.0,87302.0,1e-08]
[1766574648390,0.14418,87308.0,87292.0,0.06873478]
[1766574648594,0.1442868,87308.0,87289.0,0.24058002]
[1766574648971,0.1442868,87308.0,87291.0,0.06873559]
[1766574649113,0.1442868,87308.0,87289.0,0.24058002]
[1766574649114,0.1442868,87308.0,87290.0,0.22912131]
[1766574649722,0.1442868,87308.0,87291.0,0.05727967]
[1766574649926,0.1442868,87308.0,87290.0,0.21766697]
[1766574651114,0.1442868,87308.0,87291.0,0.05727967]
[1766574651339,0.1442868,87308.0,87291.0,0.01141575]
[1766574651945,0.13310918,87308.0,87292.0,0.02212559]
[1766574652099,0.13310918,87308.0,87291.0,0.02146511]
[1766574652579,0.13310918,87308.0,87290.0,0.21766697]
[1766574653209,0.13310918,87308.0,87292.0,0.06873474]
[1766574653380,0.13310918,87308.0,87292.0,0.0114558]
[1766574654822,0.13310918,87308.0,87292.0,0.05727878]
[1766574655028,0.13310918,87308.0,87294.0,0.01145554]
[1766574655233,0.13310918,87308.0,87291.0,0.01145593]
[1766574655802,0.13310918,87308.0,87292.0,0.0228083]
[1766574656207,0.13310918,87308.0,87295.0,0.0114554]
[1766574656459,0.13310918,87308.0,87293.0,0.01145567]
[1766574656808,0.13310918,87308.0,87294.0,0.06873324]
[1766574657010,0.13310918,87308.0,87294.0,0.01145554]
[1766574657216,0.13310918,87308.0,87292.0,0.0687343]
[1766574659014,0.13310918,87308.0,87293.0,0.06873369]
[1766574659222,0.13310918,87308.0,87291.0,0.05727947]
[1766574659574,0.13310918,87308.0,87292.0,0.06873481]
[1766574660499,0.13310918,87308.0,87293.0,0.01145567]
[1766574660862,0.13310918,87308.0,87294.0,0.01145554]
[1766574661064,0.13310918,87308.0,87293.0,0.06873393]
[1766574661443,0.13310918,87308.0,87294.0,0.01145554]
[1766574661687,0.13310918,87308.0,87293.0,0.06873393]
[1766574662610,0.13310918,87308.0,87294.0,0.01145554]
[1766574662853,0.13310918,87308.0,87295.0,0.0114554]
[1766574664097,0.13310918,87308.0,87295.0,0.06873241]
[1766574664374,0.01148,87307.0,87295.0,0.06873241]
[1766574664583,0.13310918,87308.0,87296.0,0.06873155]
[1766574664783,0.01148,87307.0,87297.0,0.01145514]
[1766574665187,0.01148,87307.0,87296.0,0.06873155]
[1766574665406,0.01148,87307.0,87297.0,0.01145514]
[1766574665850,0.01148,87307.0,87297.0,0.06873073]
[1766574666037,0.05727422,87299.0,87275.0,0.59597925]
[1766574666237,0.03119411,87299.0,87296.0,0.01145527]
[1766574666439,0.03119411,87299.0,87298.0,0.05727508]
[1766574667372,0.04584,87314.0,87303.0,1e-08]
[1766574667575,0.17821,87320.0,87303.0,1e-08]
[1766574667576,0.01148,87313.0,87303.0,0.01145437]
[1766574667911,0.01148,87312.0,87302.0,0.06872692]
[1766574668133,0.17821,87320.0,87302.0,0.06872692]
[1766574668336,0.01148,87319.0,87303.0,0.01145436]
[1766574668713,0.00011,87323.0,87308.0,0.0114537]
[1766574668935,0.01148,87322.0,87306.0,0.01145396]
[1766574669251,0.00011,87323.0,87306.0,0.01145396]
[1766574669252,0.01148,87321.0,87306.0,0.01145396]
[1766574669998,0.01148,87321.0,87305.0,0.06872405]
[1766574670406,0.01148,87321.0,87305.0,0.01145409]
[1766574671171,0.01148,87321.0,87306.0,0.01145396]
[1766574671303,0.01148,87321.0,87305.0,0.06872454]
[1766574671686,0.01148,87320.0,87305.0,0.06872454]
[1766574671954,0.01148,87320.0,87306.0,0.01145396]
[1766574672351,0.01148,87319.0,87308.0,0.0114537]
[1766574672558,0.01148,87319.0,87307.0,0.06872251]
[1766574672803,0.00011,87323.0,87307.0,0.01145383]
[1766574672973,0.01148,87322.0,87307.0,0.01145383]
[1766574673396,0.01148,87322.0,87308.0,0.0114537]
[1766574673609,0.01148,87321.0,87310.0,0.01145344]
[1766574674014,0.01148,87321.0,87311.0,0.01145331]
[1766574674252,0.01148,87320.0,87309.0,0.01145357]
[1766574674427,0.01148,87320.0,87308.0,0.06872166]
[1766574674669,0.01148,87320.0,87310.0,0.01145344]
[1766574674900,0.01148,87320.0,87309.0,0.01145357]
[1766574675120,0.01148,87320.0,87308.0,0.06872208]
[1766574675564,0.01148,87320.0,87309.0,0.01145357]
[1766574675764,0.01148,87320.0,87306.0,0.06872374]
[1766574675973,0.01148,87320.0,87305.0,0.06872446]
[1766574676168,0.00011,87323.0,87307.0,0.01145383]
[1766574676372,0.01148,87319.0,87306.0,0.06872341]
[1766574676584,0.01148,87319.0,87307.0,0.01145383]
[1766574676787,0.01148,87319.0,87307.0,0.06872284]
[1766574677166,0.01148,87319.0,87308.0,0.0114537]
[1766574677614,0.01148,87319.0,87307.0,0.01145383]
[1766574678023,0.01148,87319.0,87306.0,0.01145396]
[1766574678221,0.01148,87319.0,87305.0,0.08020456]
[1766574678428,0.01148,87319.0,87305.0,0.02293409]
[1766574678631,0.01148,87319.0,87305.0,0.0802045]
[1766574679050,0.01148,87319.0,87306.0,0.01145396]
[1766574679260,0.01148,87319.0,87305.0,0.0802045]
[1766574679981,0.00011,87323.0,87305.0,0.02293409]
[1766574680206,0.01148,87322.0,87307.0,0.01145383]
[1766574680420,0.01148,87322.0,87306.0,0.01145396]
[1766574680762,0.01148,87322.0,87307.0,0.01145383]
[1766574681174,0.01148,87322.0,87306.0,0.06872322]
[1766574681399,0.00011,87323.0,87306.0,0.01145396]
[1766574681620,0.01148,87321.0,87306.0,0.01145396]
[1766574681795,0.01148,87321.0,87305.0,0.08020445]
[1766574681959,0.01148,87321.0,87306.0,0.01145396]
[1766574682164,0.01148,87321.0,87305.0,0.02293409]
[1766574682818,0.01148,87320.0,87305.0,0.08020445]
[1766574683838,0.00011,87323.0,87305.0,0.08020445]
[1766574684060,0.01148,87320.0,87305.0,0.08020445]
[1766574684245,0.01148,87320.0,87306.0,0.06872365]
[1766574684439,0.01148,87320.0,87306.0,0.01145396]
[1766574684881,0.00011,87323.0,87305.0,0.08020331]
[1766574685096,0.01148,87320.0,87306.0,0.01145396]
[1766574685340,0.01148,87320.0,87307.0,0.01145383]
[1766574685606,0.01148,87320.0,87307.0,0.06872255]
[1766574685776,0.01148,87320.0,87308.0,0.06872221]
[1766574685932,0.01148,87320.0,87309.0,0.01145357]
[1766574686140,0.01148,87320.0,87309.0,0.06872119]
[1766574686316,0.01148,87320.0,87307.0,0.01145383]
[1766574686517,0.01148,87320.0,87309.0,0.01145357]
[1766574688440,0.01148,87320.0,87308.0,0.06872222]
[1766574689170,0.00011,87323.0,87308.0,0.06872222]
[1766574689388,0.01148,87321.0,87309.0,0.01145357]
[1766574689560,0.01148,87321.0,87308.0,0.06872222]
[1766574689768,0.01148,87321.0,87308.0,0.0114537]
[1766574689964,0.00011,87323.0,87308.0,0.06872221]
[1766574690181,0.01148,87321.0,87308.0,0.0114537]
[1766574690401,0.01148,87321.0,87307.0,0.01145383]